[Event "Late-Titled-Tuesday-Blitz-February-06-2024"]
[Site "Chess.com"]
[Date "2024.02.06"]
[Round "2"]
[White "betta2004"]
[Black "AlexeiShirov"]
[Result "1/2-1/2"]
[WhiteElo "2543"]
[BlackElo "2790"]
[TimeControl "180+1"]
[EndTime "14:17:52 PST"]
[Termination "Game drawn by repetition"]

1. e4 {[%clk 0:02:55.5]} 1... e5 {[%clk 0:02:59.6]} 2. Nf3 {[%clk 0:02:54.2]}
2... Nc6 {[%clk 0:02:59.7]} 3. d4 {[%clk 0:02:54.2]} 3... exd4 {[%clk
0:02:58.9]} 4. Nxd4 {[%clk 0:02:55.1]} 4... Qf6 {[%clk 0:02:58.8]} 5. Nf3 {[%clk
0:02:54.3]} 5... Bb4+ {[%clk 0:02:58.1]} 6. c3 {[%clk 0:02:54.3]} 6... Bc5
{[%clk 0:02:57.5]} 7. Be2 {[%clk 0:02:54.9]} 7... Nge7 {[%clk 0:02:54.2]} 8. O-O
{[%clk 0:02:54.5]} 8... d6 {[%clk 0:02:53.6]} 9. Bg5 {[%clk 0:02:54.7]} 9... Qg6
{[%clk 0:02:52.5]} 10. b4 {[%clk 0:02:50.7]} 10... Bb6 {[%clk 0:02:51.1]} 11.
Nbd2 {[%clk 0:02:51.3]} 11... Bh3 {[%clk 0:02:49.6]} 12. b5 {[%clk 0:02:27.1]}
12... Ne5 {[%clk 0:02:48.1]} 13. Kh1 {[%clk 0:02:17.7]} 13... Bxg2+ {[%clk
0:02:44.9]} 14. Kxg2 {[%clk 0:02:16]} 14... h6 {[%clk 0:02:43.6]} 15. Nxe5
{[%clk 0:02:11.1]} 15... dxe5 {[%clk 0:02:41.9]} 16. h4 {[%clk 0:02:05.6]} 16...
hxg5 {[%clk 0:02:38.2]} 17. h5 {[%clk 0:02:05.1]} 17... Qf6 {[%clk 0:02:36.9]}
18. Bg4 {[%clk 0:01:59.6]} 18... Rd8 {[%clk 0:02:30.9]} 19. Qe2 {[%clk 0:01:58]}
19... Qf4 {[%clk 0:02:13.3]} 20. Nc4 {[%clk 0:01:57.1]} 20... Ng6 {[%clk
0:02:10.3]} 21. Rad1 {[%clk 0:01:46.7]} 21... Nh4+ {[%clk 0:02:05.9]} 22. Kh3
{[%clk 0:01:46.3]} 22... O-O {[%clk 0:01:52.1]} 23. Rd3 {[%clk 0:01:13.9]} 23...
Rxd3+ {[%clk 0:01:39.2]} 24. Qxd3 {[%clk 0:01:11.8]} 24... Bxf2 {[%clk
0:01:34.2]} 25. Nxe5 {[%clk 0:01:09.5]} 25... Qxe5 {[%clk 0:01:21.2]} 26. Rxf2
{[%clk 0:01:09.4]} 26... Re8 {[%clk 0:01:21.2]} 27. Qc4 {[%clk 0:01:03.5]} 27...
Re7 {[%clk 0:01:14.9]} 28. Re2 {[%clk 0:00:33.7]} 28... Kh7 {[%clk 0:01:13.1]}
29. a4 {[%clk 0:00:30.2]} 29... Qf4 {[%clk 0:01:05.9]} 30. Qd3 {[%clk
0:00:15.7]} 30... Kh6 {[%clk 0:00:53.5]} 31. Qd8 {[%clk 0:00:09.7]} 31... Qf1+
{[%clk 0:00:48.8]} 32. Kh2 {[%clk 0:00:10.1]} 32... Qf4+ {[%clk 0:00:43]} 33.
Kh3 {[%clk 0:00:10.5]} 33... Qf1+ {[%clk 0:00:19.8]} 34. Kh2 {[%clk 0:00:10.6]}
34... Qf4+ {[%clk 0:00:19.7]} 35. Kh3 {[%clk 0:00:11]} 1/2-1/2

[Event "Late-Titled-Tuesday-Blitz-February-06-2024"]
[Site "Chess.com"]
[Date "2024.02.06"]
[Round "2"]
[White "Mikasinski"]
[Black "Alex_Sahakyan2006"]
[Result "1-0"]
[WhiteElo "2604"]
[BlackElo "2887"]
[TimeControl "180+1"]
[EndTime "14:17:54 PST"]
[Termination "Mikasinski won on time"]

1. e4 {[%clk 0:03:00.9]} 1... e5 {[%clk 0:02:57.5]} 2. Nf3 {[%clk 0:03:00.9]}
2... Nc6 {[%clk 0:02:55.4]} 3. Nc3 {[%clk 0:03:01.2]} 3... Nf6 {[%clk
0:02:51.1]} 4. Bb5 {[%clk 0:03:00.9]} 4... Bb4 {[%clk 0:02:49.3]} 5. O-O {[%clk
0:03:00.8]} 5... O-O {[%clk 0:02:46.7]} 6. d3 {[%clk 0:03:01.1]} 6... Re8 {[%clk
0:02:41.3]} 7. Bg5 {[%clk 0:02:54.6]} 7... Bxc3 {[%clk 0:02:27.2]} 8. bxc3
{[%clk 0:02:53.1]} 8... h6 {[%clk 0:02:21.9]} 9. Bh4 {[%clk 0:02:51.3]} 9... d6
{[%clk 0:02:22.2]} 10. Re1 {[%clk 0:02:50.8]} 10... g5 {[%clk 0:02:17.2]} 11.
Nxg5 {[%clk 0:02:26.1]} 11... hxg5 {[%clk 0:02:16.8]} 12. Bxg5 {[%clk
0:02:26.1]} 12... Re6 {[%clk 0:01:22]} 13. Qf3 {[%clk 0:02:13.2]} 13... Kg7
{[%clk 0:01:17.6]} 14. Qg3 {[%clk 0:01:54.8]} 14... Ne7 {[%clk 0:00:56.4]} 15.
Bc4 {[%clk 0:01:51.6]} 15... Ng6 {[%clk 0:00:50.8]} 16. Bxe6 {[%clk 0:01:44.7]}
16... Bxe6 {[%clk 0:00:47.7]} 17. h4 {[%clk 0:01:44.8]} 17... Qh8 {[%clk
0:00:45.9]} 18. Bxf6+ {[%clk 0:01:42.3]} 18... Kxf6 {[%clk 0:00:41]} 19. Qg5+
{[%clk 0:01:42.4]} 19... Kg7 {[%clk 0:00:40.9]} 20. h5 {[%clk 0:01:43]} 20...
Rg8 {[%clk 0:00:34.3]} 21. hxg6 {[%clk 0:01:41.8]} 21... f6 {[%clk 0:00:32.4]}
22. Qg3 {[%clk 0:01:33.6]} 22... Qh5 {[%clk 0:00:30.7]} 23. f4 {[%clk
0:01:29.7]} 23... exf4 {[%clk 0:00:20.2]} 24. Qxf4 {[%clk 0:01:29.6]} 24... Qc5+
{[%clk 0:00:14.8]} 25. Qf2 {[%clk 0:01:22]} 25... Qxc3 {[%clk 0:00:15.1]} 26.
Rf1 {[%clk 0:01:21.9]} 26... Kxg6 {[%clk 0:00:11.9]} 27. d4 {[%clk 0:01:21.8]}
27... Rf8 {[%clk 0:00:11.4]} 28. Rae1 {[%clk 0:01:20]} 28... Bc4 {[%clk
0:00:09.8]} 29. Re3 {[%clk 0:01:18.6]} 29... Qa5 {[%clk 0:00:07.7]} 30. Rg3+
{[%clk 0:01:17.8]} 30... Kh7 {[%clk 0:00:06.8]} 31. Qf5+ {[%clk 0:01:17.2]}
31... Qxf5 {[%clk 0:00:06.1]} 32. Rxf5 {[%clk 0:01:17.5]} 32... Kh6 {[%clk
0:00:05.7]} 33. d5 {[%clk 0:01:12.9]} 33... Be2 {[%clk 0:00:05.2]} 34. Kf2
{[%clk 0:01:12.3]} 34... Bh5 {[%clk 0:00:05.6]} 35. Rh3 {[%clk 0:01:12]} 35...
Kg6 {[%clk 0:00:04.6]} 36. Rfxh5 {[%clk 0:01:11.5]} 36... Re8 {[%clk 0:00:04.5]}
37. Kf3 {[%clk 0:01:10.5]} 37... a5 {[%clk 0:00:03.8]} 38. Rh7 {[%clk
0:01:10.5]} 38... a4 {[%clk 0:00:03.1]} 39. Rxc7 {[%clk 0:01:10.4]} 39... a3
{[%clk 0:00:03.1]} 40. Rxb7 {[%clk 0:01:10.3]} 40... f5 {[%clk 0:00:03.1]} 41.
exf5+ {[%clk 0:01:10.3]} 41... Kf6 {[%clk 0:00:02.6]} 42. Rh6+ {[%clk
0:01:09.7]} 42... Kg5 {[%clk 0:00:03.2]} 43. Rg6+ {[%clk 0:01:08.2]} 43... Kxf5
{[%clk 0:00:03.5]} 44. Re6 {[%clk 0:01:08.5]} 44... Rh8 {[%clk 0:00:02.2]} 45.
g4+ {[%clk 0:01:07.8]} 45... Kg5 {[%clk 0:00:02.2]} 46. Rg7+ {[%clk 0:01:06.9]}
46... Kh4 {[%clk 0:00:02.7]} 47. Rf7 {[%clk 0:01:00]} 47... Kh3 {[%clk
0:00:01.7]} 48. Rff6 {[%clk 0:00:58.8]} 1-0

[Event "Late-Titled-Tuesday-Blitz-February-06-2024"]
[Site "Chess.com"]
[Date "2024.02.06"]
[Round "2"]
[White "sergiochess83"]
[Black "HajiyevKanan"]
[Result "1-0"]
[WhiteElo "2914"]
[BlackElo "2602"]
[TimeControl "180+1"]
[EndTime "14:17:55 PST"]
[Termination "sergiochess83 won by resignation"]

1. c4 {[%clk 0:02:55.2]} 1... Nf6 {[%clk 0:02:59.4]} 2. Nc3 {[%clk 0:02:54.7]}
2... c6 {[%clk 0:02:59.9]} 3. d4 {[%clk 0:02:47.3]} 3... d5 {[%clk 0:03:00.8]}
4. e3 {[%clk 0:02:47.9]} 4... a6 {[%clk 0:03:00.9]} 5. Nf3 {[%clk 0:02:46.7]}
5... Bf5 {[%clk 0:02:59.1]} 6. Bd3 {[%clk 0:02:44.1]} 6... Bxd3 {[%clk
0:02:58.6]} 7. Qxd3 {[%clk 0:02:45]} 7... e6 {[%clk 0:02:59.5]} 8. O-O {[%clk
0:02:44.8]} 8... Bb4 {[%clk 0:02:59.3]} 9. Bd2 {[%clk 0:02:44.8]} 9... Qe7
{[%clk 0:02:50.4]} 10. a3 {[%clk 0:02:42.4]} 10... Bxc3 {[%clk 0:02:50.6]} 11.
Bxc3 {[%clk 0:02:42.1]} 11... O-O {[%clk 0:02:51.5]} 12. Bb4 {[%clk 0:02:42.1]}
12... Qd8 {[%clk 0:02:38.5]} 13. Bxf8 {[%clk 0:02:39.7]} 13... Qxf8 {[%clk
0:02:39.4]} 14. Ne5 {[%clk 0:02:35.6]} 14... Nbd7 {[%clk 0:02:39.1]} 15. Nxd7
{[%clk 0:02:35.2]} 15... Nxd7 {[%clk 0:02:40]} 16. e4 {[%clk 0:02:30.3]} 16...
dxe4 {[%clk 0:02:38]} 17. Qxe4 {[%clk 0:02:30.3]} 17... Qd6 {[%clk 0:02:37.4]}
18. Rad1 {[%clk 0:02:28.7]} 18... Rd8 {[%clk 0:02:35.5]} 19. h3 {[%clk
0:02:20.2]} 19... g6 {[%clk 0:02:33.6]} 20. Rfe1 {[%clk 0:02:17.3]} 20... Kg7
{[%clk 0:02:31.4]} 21. Qf3 {[%clk 0:02:11.4]} 21... Nf6 {[%clk 0:02:27.7]} 22.
Qc3 {[%clk 0:02:01.2]} 22... Kg8 {[%clk 0:02:05.8]} 23. a4 {[%clk 0:01:46.5]}
23... Qf4 {[%clk 0:01:53.1]} 24. a5 {[%clk 0:01:38]} 24... h5 {[%clk 0:01:50.3]}
25. Qe3 {[%clk 0:01:30.7]} 25... Qc7 {[%clk 0:01:49.7]} 26. Qe5 {[%clk
0:01:30.1]} 26... Qe7 {[%clk 0:01:08.5]} 27. d5 {[%clk 0:01:19]} 27... cxd5
{[%clk 0:01:09.4]} 28. cxd5 {[%clk 0:01:18.9]} 28... Rd6 {[%clk 0:01:10.1]} 29.
dxe6 {[%clk 0:01:11.5]} 29... Rxe6 {[%clk 0:01:08.4]} 30. Qb8+ {[%clk
0:01:09.8]} 30... Kg7 {[%clk 0:01:08.7]} 31. Rxe6 {[%clk 0:01:08.9]} 31... Qxe6
{[%clk 0:00:56.8]} 32. Qxb7 {[%clk 0:01:04.6]} 32... Qe2 {[%clk 0:00:55.6]} 33.
Rf1 {[%clk 0:00:50.4]} 33... Ne4 {[%clk 0:00:48.6]} 34. Qb6 {[%clk 0:00:48.5]}
34... Nd2 {[%clk 0:00:40.9]} 35. Rc1 {[%clk 0:00:44.4]} 35... Ne4 {[%clk
0:00:34.5]} 36. Qd4+ {[%clk 0:00:37.2]} 36... Kh7 {[%clk 0:00:07.7]} 37. Rc8
{[%clk 0:00:36]} 37... f6 {[%clk 0:00:03.1]} 38. Rc7+ {[%clk 0:00:36.1]} 38...
Kh6 {[%clk 0:00:03]} 39. Qe3+ {[%clk 0:00:36.3]} 39... Qxe3 {[%clk 0:00:03]} 40.
fxe3 {[%clk 0:00:37.2]} 1-0

[Event "Late-Titled-Tuesday-Blitz-February-06-2024"]
[Site "Chess.com"]
[Date "2024.02.06"]
[Round "2"]
[White "GeorgiosSouleidis"]
[Black "JonasGallasch"]
[Result "0-1"]
[WhiteElo "2694"]
[BlackElo "2383"]
[TimeControl "180+1"]
[EndTime "14:17:56 PST"]
[Termination "JonasGallasch won by resignation"]

1. e4 {[%clk 0:03:00.9]} 1... c6 {[%clk 0:02:59.3]} 2. Nc3 {[%clk 0:03:00.6]}
2... d5 {[%clk 0:02:59.3]} 3. Nf3 {[%clk 0:03:01.5]} 3... dxe4 {[%clk
0:02:52.3]} 4. Nxe4 {[%clk 0:03:02.4]} 4... Nf6 {[%clk 0:02:52.9]} 5. Qe2 {[%clk
0:03:01.2]} 5... Nxe4 {[%clk 0:02:49.8]} 6. Qxe4 {[%clk 0:03:02.1]} 6... Be6
{[%clk 0:02:48.7]} 7. Be2 {[%clk 0:03:00.2]} 7... Nd7 {[%clk 0:02:46.5]} 8. b3
{[%clk 0:02:58.8]} 8... Nf6 {[%clk 0:02:46]} 9. Qe5 {[%clk 0:02:42]} 9... Bd5
{[%clk 0:02:44.1]} 10. Bb2 {[%clk 0:02:41.1]} 10... e6 {[%clk 0:02:41.3]} 11.
O-O-O {[%clk 0:02:32.8]} 11... h6 {[%clk 0:02:37.8]} 12. c4 {[%clk 0:02:26.3]}
12... Be4 {[%clk 0:02:32.7]} 13. d3 {[%clk 0:02:15.8]} 13... Bd6 {[%clk
0:02:29.4]} 14. Qc3 {[%clk 0:02:15.5]} 14... Bh7 {[%clk 0:02:24.3]} 15. Rhe1
{[%clk 0:01:58.2]} 15... a5 {[%clk 0:02:22.5]} 16. a3 {[%clk 0:01:57.6]} 16...
O-O {[%clk 0:02:14.7]} 17. c5 {[%clk 0:01:22.4]} 17... Be7 {[%clk 0:02:05.2]}
18. Nd2 {[%clk 0:01:11.4]} 18... Qd5 {[%clk 0:01:58.4]} 19. Ne4 {[%clk
0:00:51.8]} 19... Bxe4 {[%clk 0:01:57.6]} 20. dxe4 {[%clk 0:00:52.1]} 20... Qxc5
{[%clk 0:01:58]} 21. Qxc5 {[%clk 0:00:44.9]} 21... Bxc5 {[%clk 0:01:58.9]} 22.
f3 {[%clk 0:00:44.5]} 22... Rfd8 {[%clk 0:01:57]} 23. Kc2 {[%clk 0:00:42]} 23...
Ne8 {[%clk 0:01:35.3]} 24. a4 {[%clk 0:00:39.9]} 24... Nc7 {[%clk 0:01:33.1]}
25. f4 {[%clk 0:00:38.1]} 25... Bb4 {[%clk 0:01:29.2]} 26. Rf1 {[%clk
0:00:36.4]} 26... f6 {[%clk 0:01:19]} 27. g4 {[%clk 0:00:29.5]} 27... Be7 {[%clk
0:01:10.4]} 28. h4 {[%clk 0:00:26.5]} 28... Rxd1 {[%clk 0:01:09.3]} 29. Rxd1
{[%clk 0:00:26.4]} 29... Rd8 {[%clk 0:01:09.8]} 30. Rg1 {[%clk 0:00:18.5]} 30...
Bc5 {[%clk 0:01:06.9]} 31. Rf1 {[%clk 0:00:15.8]} 31... Kh8 {[%clk 0:01:03.2]}
32. Bc3 {[%clk 0:00:14.4]} 32... b6 {[%clk 0:01:02.9]} 33. g5 {[%clk 0:00:14.2]}
33... Bd4 {[%clk 0:00:54.1]} 34. Bd2 {[%clk 0:00:10.4]} 34... f5 {[%clk
0:00:41.6]} 35. gxh6 {[%clk 0:00:08.7]} 35... gxh6 {[%clk 0:00:41.7]} 36. exf5
{[%clk 0:00:08.2]} 36... exf5 {[%clk 0:00:42.6]} 37. Bd3 {[%clk 0:00:08.7]}
37... Nd5 {[%clk 0:00:37.8]} 38. Bxf5 {[%clk 0:00:07.5]} 38... Be3 {[%clk
0:00:37.7]} 39. Be1 {[%clk 0:00:04.2]} 39... Bxf4 {[%clk 0:00:36.2]} 40. Be4
{[%clk 0:00:03.4]} 40... Ne3+ {[%clk 0:00:36.3]} 0-1

[Event "Late-Titled-Tuesday-Blitz-February-06-2024"]
[Site "Chess.com"]
[Date "2024.02.06"]
[Round "2"]
[White "delqate"]
[Black "NFChess13"]
[Result "0-1"]
[WhiteElo "2360"]
[BlackElo "2639"]
[TimeControl "180+1"]
[EndTime "14:17:58 PST"]
[Termination "NFChess13 won by resignation"]

1. e4 {[%clk 0:03:00.9]} 1... e5 {[%clk 0:02:59.6]} 2. Nf3 {[%clk 0:03:00.8]}
2... Nf6 {[%clk 0:02:59.3]} 3. Nxe5 {[%clk 0:02:59.8]} 3... d5 {[%clk
0:02:59.7]} 4. d4 {[%clk 0:02:43.6]} 4... Nxe4 {[%clk 0:02:57]} 5. Bd3 {[%clk
0:02:43.4]} 5... Nd7 {[%clk 0:02:55.3]} 6. Bf4 {[%clk 0:02:24.8]} 6... Bd6
{[%clk 0:02:52]} 7. O-O {[%clk 0:02:17.4]} 7... O-O {[%clk 0:02:52]} 8. Nd2
{[%clk 0:02:16.6]} 8... Ndf6 {[%clk 0:02:50.6]} 9. h3 {[%clk 0:02:12.3]} 9... c5
{[%clk 0:02:47.4]} 10. c4 {[%clk 0:02:05.2]} 10... Nxd2 {[%clk 0:02:44.8]} 11.
Qxd2 {[%clk 0:02:03.9]} 11... cxd4 {[%clk 0:02:44.4]} 12. Rac1 {[%clk
0:01:51.3]} 12... Be6 {[%clk 0:02:37.9]} 13. c5 {[%clk 0:01:50.2]} 13... Bc7
{[%clk 0:02:33.6]} 14. f3 {[%clk 0:01:46.2]} 14... Re8 {[%clk 0:02:24.1]} 15.
Rfe1 {[%clk 0:01:44.6]} 15... b6 {[%clk 0:02:02.6]} 16. c6 {[%clk 0:01:39.1]}
16... Bd6 {[%clk 0:01:56.6]} 17. Bh2 {[%clk 0:01:27.3]} 17... Qc7 {[%clk
0:01:55.7]} 18. Qf2 {[%clk 0:01:25.5]} 18... Bc8 {[%clk 0:01:40.2]} 19. Qxd4
{[%clk 0:01:12]} 19... Bc5 {[%clk 0:01:39.7]} 20. Rxc5 {[%clk 0:01:12.2]} 20...
bxc5 {[%clk 0:01:40.6]} 21. Qxc5 {[%clk 0:01:12.6]} 21... Qb6 {[%clk 0:01:40.3]}
22. Rc1 {[%clk 0:01:04.9]} 22... Be6 {[%clk 0:01:36.6]} 23. b4 {[%clk
0:00:58.9]} 23... Rec8 {[%clk 0:01:34.7]} 24. b5 {[%clk 0:00:53.4]} 24... Ne8
{[%clk 0:01:34.4]} 25. a4 {[%clk 0:00:48.3]} 25... Qa5 {[%clk 0:01:29.7]} 26.
Qd4 {[%clk 0:00:38.7]} 26... Nd6 {[%clk 0:01:28.2]} 27. Ng4 {[%clk 0:00:32.6]}
27... Nc4 {[%clk 0:01:22.4]} 28. Ne3 {[%clk 0:00:24.4]} 28... Qxa4 {[%clk
0:01:06.8]} 29. Nxd5 {[%clk 0:00:23.7]} 29... Bxd5 {[%clk 0:00:49]} 30. Qxd5
{[%clk 0:00:24.3]} 30... Nb6 {[%clk 0:00:45.3]} 31. Qf5 {[%clk 0:00:22.5]} 31...
g6 {[%clk 0:00:45.5]} 32. Qf6 {[%clk 0:00:20.6]} 32... Nd5 {[%clk 0:00:42.8]}
33. Qg5 {[%clk 0:00:16.2]} 33... Qd4+ {[%clk 0:00:38.9]} 34. Kh1 {[%clk
0:00:14.3]} 34... Qxd3 {[%clk 0:00:38.8]} 35. Be5 {[%clk 0:00:13.2]} 35... Qe3
{[%clk 0:00:37.4]} 36. f4 {[%clk 0:00:05.1]} 36... Qxc1+ {[%clk 0:00:37]} 37.
Kh2 {[%clk 0:00:04.8]} 37... f6 {[%clk 0:00:37.2]} 38. Bxf6 {[%clk 0:00:03.2]}
38... Qxf4+ {[%clk 0:00:37.8]} 0-1

[Event "Late-Titled-Tuesday-Blitz-February-06-2024"]
[Site "Chess.com"]
[Date "2024.02.06"]
[Round "2"]
[White "ArtemDyachuk"]
[Black "SpeedofLight0"]
[Result "0-1"]
[WhiteElo "2644"]
[BlackElo "3036"]
[TimeControl "180+1"]
[EndTime "14:17:59 PST"]
[Termination "SpeedofLight0 won by resignation"]

1. Nf3 {[%clk 0:02:57.5]} 1... d5 {[%clk 0:02:59]} 2. e3 {[%clk 0:02:57.2]} 2...
Nf6 {[%clk 0:02:58.6]} 3. b3 {[%clk 0:02:57.4]} 3... Bf5 {[%clk 0:02:59.1]} 4.
Bb2 {[%clk 0:02:57.5]} 4... e6 {[%clk 0:02:59.8]} 5. Be2 {[%clk 0:02:54.2]} 5...
Be7 {[%clk 0:02:59.8]} 6. Nh4 {[%clk 0:02:49.3]} 6... O-O {[%clk 0:02:39.6]} 7.
Nxf5 {[%clk 0:02:47]} 7... exf5 {[%clk 0:02:40.5]} 8. O-O {[%clk 0:02:45.7]}
8... Nbd7 {[%clk 0:02:36]} 9. c4 {[%clk 0:02:45.5]} 9... c6 {[%clk 0:02:34.4]}
10. Nc3 {[%clk 0:02:46]} 10... dxc4 {[%clk 0:02:32.2]} 11. bxc4 {[%clk
0:02:43.5]} 11... Bd6 {[%clk 0:02:26.1]} 12. Qc2 {[%clk 0:02:40.2]} 12... g6
{[%clk 0:02:22.9]} 13. h3 {[%clk 0:02:36.7]} 13... Re8 {[%clk 0:02:21.9]} 14.
Rfd1 {[%clk 0:02:35.3]} 14... Qc7 {[%clk 0:02:17.2]} 15. Bf3 {[%clk 0:02:33.5]}
15... Rad8 {[%clk 0:02:15.5]} 16. Rac1 {[%clk 0:02:33]} 16... Ne5 {[%clk
0:02:00.7]} 17. Be2 {[%clk 0:02:32.6]} 17... Ned7 {[%clk 0:02:01.4]} 18. d3
{[%clk 0:02:08.2]} 18... h5 {[%clk 0:01:50]} 19. Bf3 {[%clk 0:02:07.8]} 19...
Nf8 {[%clk 0:01:44.6]} 20. Ne2 {[%clk 0:02:05.8]} 20... N8h7 {[%clk 0:01:43.3]}
21. g3 {[%clk 0:02:04.7]} 21... Be5 {[%clk 0:01:40.3]} 22. Rb1 {[%clk 0:02:01]}
22... b6 {[%clk 0:01:36.9]} 23. d4 {[%clk 0:01:49.7]} 23... Bd6 {[%clk
0:01:36.3]} 24. c5 {[%clk 0:01:50.3]} 24... bxc5 {[%clk 0:01:22.8]} 25. dxc5
{[%clk 0:01:51.2]} 25... Be7 {[%clk 0:01:20.1]} 26. Nd4 {[%clk 0:01:46.3]} 26...
Nd5 {[%clk 0:01:18.3]} 27. Bxd5 {[%clk 0:01:46.1]} 27... Rxd5 {[%clk 0:01:16.9]}
28. Nb3 {[%clk 0:01:43]} 28... Red8 {[%clk 0:01:15.3]} 29. Rxd5 {[%clk
0:01:41.8]} 29... Rxd5 {[%clk 0:01:16.2]} 30. Rd1 {[%clk 0:01:42]} 30... Qd7
{[%clk 0:01:13.1]} 31. Bd4 {[%clk 0:00:55]} 31... h4 {[%clk 0:00:47.9]} 32. gxh4
{[%clk 0:00:44]} 32... Bxh4 {[%clk 0:00:48.8]} 33. Rb1 {[%clk 0:00:43.5]} 33...
Bf6 {[%clk 0:00:43.8]} 34. Kg2 {[%clk 0:00:35.5]} 34... f4 {[%clk 0:00:41.1]}
35. Qe4 {[%clk 0:00:31]} 35... Ng5 {[%clk 0:00:37.9]} 36. Qxf4 {[%clk
0:00:05.9]} 36... Qxh3+ {[%clk 0:00:37.7]} 37. Kg1 {[%clk 0:00:06.8]} 37... Nf3+
{[%clk 0:00:38.2]} 38. Qxf3 {[%clk 0:00:07.7]} 38... Qxf3 {[%clk 0:00:38.4]} 39.
Nd2 {[%clk 0:00:08.6]} 39... Qg4+ {[%clk 0:00:35.8]} 40. Kf1 {[%clk 0:00:08.3]}
40... Bxd4 {[%clk 0:00:36.3]} 41. exd4 {[%clk 0:00:09.2]} 41... Rxd4 {[%clk
0:00:36.6]} 42. f3 {[%clk 0:00:09]} 42... Qh3+ {[%clk 0:00:36.4]} 43. Kf2 {[%clk
0:00:08.9]} 43... Qh2+ {[%clk 0:00:36.1]} 44. Kf1 {[%clk 0:00:09.8]} 44... Rxd2
{[%clk 0:00:35.7]} 45. Rb8+ {[%clk 0:00:10.7]} 45... Kg7 {[%clk 0:00:36]} 46.
Rh8 {[%clk 0:00:11.5]} 0-1

[Event "Late-Titled-Tuesday-Blitz-February-06-2024"]
[Site "Chess.com"]
[Date "2024.02.06"]
[Round "2"]
[White "Eeleyah"]
[Black "Seochesspie"]
[Result "0-1"]
[WhiteElo "2397"]
[BlackElo "2789"]
[TimeControl "180+1"]
[EndTime "14:17:59 PST"]
[Termination "Seochesspie won on time"]

1. d4 {[%clk 0:03:00.9]} 1... g6 {[%clk 0:02:59.4]} 2. c4 {[%clk 0:02:58.5]}
2... Bg7 {[%clk 0:02:58.5]} 3. g3 {[%clk 0:02:59]} 3... h5 {[%clk 0:02:57.7]} 4.
h3 {[%clk 0:02:57.9]} 4... c5 {[%clk 0:02:56.4]} 5. d5 {[%clk 0:02:57.2]} 5...
d6 {[%clk 0:02:55.5]} 6. Bg2 {[%clk 0:02:57.2]} 6... a6 {[%clk 0:02:47.9]} 7. a4
{[%clk 0:02:37.5]} 7... Nf6 {[%clk 0:02:47.3]} 8. Nf3 {[%clk 0:02:37.2]} 8... e5
{[%clk 0:02:44.1]} 9. dxe6 {[%clk 0:02:36.3]} 9... Bxe6 {[%clk 0:02:42.1]} 10.
Qc2 {[%clk 0:02:23]} 10... Nc6 {[%clk 0:02:41.4]} 11. Bd2 {[%clk 0:02:16]} 11...
O-O {[%clk 0:02:34.6]} 12. O-O {[%clk 0:02:13.3]} 12... Bf5 {[%clk 0:02:33.4]}
13. Qc1 {[%clk 0:02:06.9]} 13... Ne4 {[%clk 0:02:32.9]} 14. Bh6 {[%clk 0:02:02]}
14... Re8 {[%clk 0:02:31.2]} 15. Bxg7 {[%clk 0:02:02.1]} 15... Kxg7 {[%clk
0:02:32.1]} 16. Nc3 {[%clk 0:02:01.3]} 16... Qf6 {[%clk 0:02:30.5]} 17. e3
{[%clk 0:01:51.7]} 17... Nxc3 {[%clk 0:02:30.3]} 18. Qxc3 {[%clk 0:01:52.5]}
18... Qxc3 {[%clk 0:02:30.2]} 19. bxc3 {[%clk 0:01:53.4]} 19... Na5 {[%clk
0:02:28.1]} 20. Nd2 {[%clk 0:01:49.2]} 20... Rab8 {[%clk 0:02:22.2]} 21. Rfd1
{[%clk 0:01:37.3]} 21... Bc2 {[%clk 0:02:18]} 22. Rdc1 {[%clk 0:01:36]} 22...
Bd3 {[%clk 0:02:16]} 23. Bd5 {[%clk 0:01:33.8]} 23... Bf5 {[%clk 0:02:12.4]} 24.
e4 {[%clk 0:01:32.2]} 24... Bxh3 {[%clk 0:02:10.9]} 25. Rab1 {[%clk 0:01:30.1]}
25... Be6 {[%clk 0:01:42.2]} 26. Rb6 {[%clk 0:01:29.8]} 26... Bxd5 {[%clk
0:01:42.3]} 27. cxd5 {[%clk 0:01:29.5]} 27... Red8 {[%clk 0:01:42.4]} 28. Rcb1
{[%clk 0:01:28.6]} 28... Kf6 {[%clk 0:01:41]} 29. f4 {[%clk 0:01:28.2]} 29...
Ke7 {[%clk 0:01:41.1]} 30. c4 {[%clk 0:01:23.2]} 30... f6 {[%clk 0:01:40.1]} 31.
Kf2 {[%clk 0:01:23]} 31... Kd7 {[%clk 0:01:39.8]} 32. Kf3 {[%clk 0:01:20.9]}
32... Kc7 {[%clk 0:01:39.7]} 33. e5 {[%clk 0:01:11.6]} 33... fxe5 {[%clk
0:01:39.5]} 34. fxe5 {[%clk 0:01:12]} 34... dxe5 {[%clk 0:01:35.6]} 35. Rxg6
{[%clk 0:01:11.4]} 35... Rf8+ {[%clk 0:01:35.5]} 36. Ke3 {[%clk 0:00:49.1]}
36... Rg8 {[%clk 0:01:35.1]} 37. Rbb6 {[%clk 0:00:44.1]} 37... Nc6 {[%clk
0:00:55.6]} 38. Rgxc6+ {[%clk 0:00:43.4]} 38... bxc6 {[%clk 0:00:55.8]} 39.
Rxc6+ {[%clk 0:00:44.3]} 39... Kd8 {[%clk 0:00:55.8]} 40. Rxc5 {[%clk
0:00:39.6]} 40... Rxg3+ {[%clk 0:00:54.7]} 41. Kf2 {[%clk 0:00:17.4]} 41... Rd3
{[%clk 0:00:54.1]} 42. Ne4 {[%clk 0:00:15.2]} 42... Rb2+ {[%clk 0:00:53.9]} 43.
Ke1 {[%clk 0:00:15.3]} 43... Ra3 {[%clk 0:00:45.9]} 0-1